bitfinex/quotes_ETHUSD_20260106
["timestamp","ask_amount","ask_price","bid_price","bid_amount"]
[1767687919992,3.10896937,3216.5,3215.8,0.97387452]
[1767687920185,0.63915458,3216.4,3215.8,0.002]
[1767687921085,0.63915458,3216.4,3215.5,0.97387452]
[1767687921086,0.63915458,3216.3,3215.5,0.97387452]
[1767687922190,6.21851874,3216.2,3215.5,0.97387452]
[1767687922381,6.85767332,3216.2,3215.5,0.97387452]
[1767687922988,3.74841395,3216.2,3215.5,0.97387452]
[1767687924011,0.63915458,3216.1,3215.5,0.002]
[1767687924218,6.21851874,3216.2,3215.1,0.97187452]
[1767687924219,0.63915458,3215.9,3215.1,0.97187452]
[1767687924372,0.63915458,3215.8,3215.0,0.002]
[1767687924681,0.63915458,3215.8,3215.0,0.97387452]
[1767687924884,0.63915458,3215.8,3215.0,0.002]
[1767687925790,6.21948564,3215.7,3215.0,0.002]
[1767687925970,0.63915458,3215.6,3215.0,0.002]
[1767687926683,3.10974282,3215.7,3215.0,0.97387452]
[1767687929406,0.63915458,3215.7,3215.0,0.002]
[1767687930807,7.67326304,3215.9,3215.1,0.97187452]
[1767687932610,3.92455423,3215.9,3215.1,0.97187452]
[1767687933107,7.03410846,3215.9,3215.1,0.97187452]
[1767687939996,3.92455423,3215.9,3215.1,0.97187452]
[1767687940322,7.03410846,3215.9,3215.1,0.97187452]
[1767687940709,3.92455423,3215.9,3215.1,0.97187452]
[1767687941106,0.815,3216.1,3215.2,0.99270754]
[1767687941311,3.92428842,3216.2,3215.2,0.99270754]
[1767687941497,0.815,3216.2,3215.4,0.99270754]
[1767687942222,3.92428363,3216.2,3215.4,0.99270754]
[1767687943450,0.815,3216.2,3215.5,0.99270754]
[1767687943743,0.001,3216.3,3215.5,0.99270754]
[1767687944945,0.001,3216.3,3215.7,0.99270754]
[1767687945109,0.001,3216.3,3215.9,0.99270754]
[1767687945731,3.10995199,3216.6,3216.3,0.99270754]
[1767687945732,0.001,3216.6,3216.3,0.99270754]
[1767687947713,0.001,3216.6,3216.3,4.1018154]
[1767687947916,0.001,3216.8,3216.5,0.99270754]
[1767687950349,0.001,3216.8,3216.0,0.99270754]
[1767687950863,0.001,3216.8,3216.1,0.99270754]
[1767687951224,0.001,3216.3,3216.1,0.99270754]
[1767687951422,0.75422328,3216.8,3216.0,3.10944825]
[1767687951759,0.75422328,3216.8,3216.0,0.6629347]
[1767687951932,0.001,3216.8,3216.1,0.99270754]
[1767687952736,0.001,3216.8,3216.1,4.10204862]
[1767687953040,0.001,3216.8,3216.2,0.99270754]
[1767687953639,0.001,3216.8,3216.2,0.99070754]
[1767687957483,0.75622328,3216.8,3216.0,0.99270754]
[1767687957627,0.75622328,3216.8,3215.0,0.002]
[1767687957628,0.75522328,3216.5,3215.7,0.99270754]
[1767687958134,3.86428931,3216.4,3215.7,0.99270754]
[1767687958962,0.75522328,3216.3,3215.5,0.99270754]
[1767687960671,3.86448265,3216.2,3215.5,0.99270754]
[1767687960867,0.75522328,3216.1,3215.5,0.99270754]
[1767687962477,0.75522328,3216.1,3215.0,0.002]
[1767687962647,6.97451552,3215.8,3215.0,0.90906462]
[1767687964477,0.75522328,3215.7,3215.0,0.90906462]
[1767687964783,3.10983953,3215.6,3215.0,0.90906462]
[1767687968858,0.75522328,3215.5,3215.0,0.002]
[1767687969683,0.75522328,3215.5,3214.8,0.002]
[1767687970482,0.75522328,3215.3,3214.8,0.002]
[1767687970785,3.86525624,3215.4,3214.8,0.9156798]
[1767687971192,0.75522328,3215.3,3214.8,0.002]
[1767687971759,0.75522328,3215.2,3214.7,0.002]
[1767687971964,1.57022328,3215.2,3214.0,3.83]
[1767687972171,0.75322328,3215.1,3214.1,0.9136798]
[1767687972373,0.75322328,3215.1,3214.1,4.02496908]
[1767687972553,0.75322328,3214.9,3214.1,4.02496908]
[1767687974777,0.75322328,3214.8,3214.1,0.9136798]
[1767687975601,0.75322328,3214.8,3214.2,0.9156798]
[1767687975776,0.75322328,3214.8,3214.5,0.002]
[1767687976568,3.11043625,3215.0,3214.5,0.002]
[1767687976763,0.815,3215.2,3214.5,0.9156798]
[1767687977075,3.92522642,3215.2,3214.5,0.9156798]
[1767687977274,0.75322328,3214.5,3213.5,0.9136798]
[1767687977485,0.90650258,3214.3,3213.0,4.257189]
[1767687977691,0.90650258,3214.3,3213.1,0.9136798]
[1767687978888,7.21648857,3214.2,3213.1,0.9136798]
[1767687979194,7.21648857,3214.2,3213.2,0.9136798]
[1767687979966,0.99410043,3214.1,3213.2,0.9136798]
[1767687981401,7.21687577,3214.0,3213.2,0.9136798]
[1767687981577,0.815,3213.9,3213.2,0.9136798]
[1767687981901,1.80910043,3213.9,3213.2,0.9136798]
[1767687982905,0.99410043,3213.8,3213.0,0.9136798]
[1767687983602,0.99410043,3213.7,3212.4,0.9136798]
[1767687983893,0.99410043,3213.7,3212.6,0.9136798]
[1767687984093,0.99410043,3213.5,3212.6,0.9136798]
[1767687984594,0.99410043,3213.3,3212.3,0.9136798]
[1767687984799,0.99410043,3213.3,3212.4,0.9136798]
[1767687985500,4.1062291,3213.3,3212.5,0.9136798]
[1767687986484,7.21835777,3213.3,3212.5,0.9136798]
[1767687986690,4.1062291,3213.3,3212.5,0.9136798]
[1767687987000,3.11168941,3213.7,3212.6,0.9136798]
[1767687987369,1.0065483,3213.6,3212.6,0.9136798]
[1767687987590,4.10597222,3213.5,3212.6,0.9136798]
[1767687987984,4.10597222,3213.5,3212.7,0.9136798]
[1767687988368,4.10597222,3213.5,3212.9,0.00099897]
[1767687988996,4.10597222,3213.5,3212.9,0.91467877]
[1767687989196,7.21784401,3213.5,3212.9,0.91467877]
[1767687990501,4.10597222,3213.5,3212.9,0.91467877]
[1767687991009,7.21784401,3213.5,3212.9,0.91467877]
[1767687991180,4.64666168,3213.2,3212.5,0.002]
[1767687991387,0.92979003,3213.1,3212.5,0.002]
[1767687991571,0.92979003,3213.1,3212.2,0.9107898]
[1767687991770,0.92979003,3213.0,3212.2,0.9107898]
[1767687991975,0.92979003,3212.8,3212.0,0.9107898]
[1767687992394,5.57645171,3212.7,3212.0,0.9107898]
[1767687992895,0.92979003,3212.6,3211.8,0.9107898]
[1767687993104,4.64666168,3212.7,3211.8,0.9107898]
[1767687993871,3.11274357,3212.6,3211.8,0.9107898]
[1767687994077,1.74479003,3212.8,3211.8,0.9107898]
[1767687994306,1.74479003,3212.8,3211.9,0.9107898]
[1767687994608,0.815,3212.8,3212.0,0.9107898]
[1767687994775,0.815,3212.8,3212.0,0.11757521]
[1767687995283,0.815,3212.8,3212.0,0.51151732]
[1767687995706,3.92755026,3212.8,3212.0,0.51151732]
[1767687995885,7.96989055,3212.8,3212.0,0.51151732]
[1767687996503,7.96989055,3212.8,3212.0,0.14956069]
[1767687996809,0.92979003,3212.7,3211.9,0.14956069]
[1767687996988,0.92979003,3212.7,3211.9,3.2629814]
[1767687997176,0.92979003,3212.7,3212.0,0.14956069]
[1767687997498,0.92979003,3212.7,3212.0,3.26287545]
[1767687997873,0.92979003,3212.7,3212.0,0.14956069]
[1767687998808,7.15508413,3212.7,3212.0,0.14956069]
[1767687999306,0.92979003,3212.6,3212.0,0.14956069]
[1767687999907,0.92979003,3212.6,3211.6,5.540023]
[1767688000113,0.92979003,3212.4,3211.6,5.540023]
[1767688000412,0.92979003,3212.2,3211.4,3.11384958]
[1767688000611,0.92979003,3212.2,3211.5,0.31158496]
[1767688000906,3.11284046,3212.5,3211.5,0.31158496]
[1767688001204,4.04263049,3212.5,3211.5,3.42537432]
[1767688001411,0.93079003,3212.5,3211.6,3.11368244]
[1767688001708,0.93079003,3212.5,3211.5,0.31158496]
[1767688001882,0.93079003,3212.5,3211.6,3.11369093]
[1767688002084,0.92979003,3212.4,3211.6,3.11369093]
[1767688003413,0.92979003,3212.4,3211.6,6.22740372]
[1767688003582,0.92979003,3212.4,3211.6,3.11369093]
[1767688003984,0.92979003,3212.4,3211.3,6.23000734]
[1767688004213,0.92979003,3212.4,3211.4,10.065842]
[1767688004415,0.92979003,3212.4,3211.5,1.62958493]
[1767688004614,0.92979003,3212.4,3211.4,10.065842]
[1767688006889,0.92979003,3212.4,3211.5,3.11380974]
[1767688007816,0.92979003,3212.4,3211.5,6.22761948]
[1767688008020,0.001,3212.5,3211.6,4.64666168]
[1767688008402,0.93079003,3212.5,3211.5,3.11380974]
[1767688008602,0.93079003,3212.5,3211.6,0.62276878]
[1767688009121,0.93079003,3212.5,3211.6,3.73639741]
[1767688009320,4.04365664,3212.5,3211.6,3.73639741]
[1767688009617,0.92979003,3212.4,3211.6,3.73639741]
[1767688010200,0.92979003,3212.4,3211.6,0.62276878]
[1767688011611,0.92979003,3212.3,3211.6,0.62276878]
[1767688012221,0.92979003,3212.3,3211.6,3.7364815]
[1767688012389,0.92979003,3212.3,3211.7,0.70045122]
[1767688012785,0.001,3212.5,3211.7,0.68502688]
[1767688013020,0.93079003,3212.5,3211.7,0.68502688]
[1767688013221,4.04363829,3212.5,3211.9,0.002]
[1767688013602,0.92979003,3212.4,3211.9,0.002]
[1767688013808,0.92979003,3212.3,3211.5,3.11577313]
[1767688014008,0.92979003,3212.3,3211.6,0.85784348]
[1767688015815,0.96739083,3211.6,3210.3,0.002]
[1767688016021,0.96739083,3211.5,3210.5,0.00729831]
[1767688016548,0.96739083,3211.5,3210.4,2.151564]
[1767688016755,0.96739083,3211.5,3210.4,0.2153564]
[1767688017035,0.96739083,3211.5,3210.4,2.151564]
[1767688017926,0.96739083,3211.3,3210.4,5.26644013]
[1767688018259,0.96739083,3211.3,3210.4,3.11487613]
[1767688019639,0.96739083,3211.3,3210.4,2.657702]
[1767688019813,0.96739083,3211.3,3210.4,5.77257463]
[1767688020132,0.96739083,3211.3,3210.4,4.00382722]
[1767688020533,0.96739083,3211.2,3210.4,0.88895459]
[1767688020710,0.96739083,3211.2,3210.4,2.067702]
[1767688021435,0.96739083,3211.2,3210.4,5.18256559]
[1767688021622,0.96739083,3211.2,3210.4,3.11486359]
[1767688021825,0.96739083,3211.2,3210.4,6.22974024]
[1767688022026,0.96685167,3211.4,3210.5,0.00729831]
[1767688022210,0.96685167,3211.4,3210.7,0.00729831]
[1767688022413,0.96685167,3211.7,3210.7,0.00729831]
[1767688022657,1.25720044,3211.6,3210.7,0.00729831]
[1767688022811,0.29034877,3211.5,3210.7,0.00729831]
[1767688023313,0.96685167,3211.6,3210.7,0.00729831]
[1767688023949,0.96685167,3211.5,3210.7,0.00729831]
[1767688024446,0.96685167,3211.5,3210.5,3.12201308]
[1767688024653,0.96685167,3211.5,3210.5,0.00729831]
[1767688024822,0.96685167,3211.5,3210.5,3.12203898]
[1767688025140,0.96685167,3211.5,3210.4,3.11483964]
[1767688025339,0.96685167,3211.5,3210.5,3.50879228]
[1767688025636,0.96685167,3211.5,3210.7,0.002]
[1767688025809,0.96685167,3211.4,3210.7,0.002]
[1767688027831,0.96685167,3211.3,3210.7,0.002]
[1767688028017,0.96685167,3211.3,3210.4,0.002]
[1767688028218,0.96685167,3211.1,3210.4,0.002]
[1767688030244,0.96685167,3211.0,3210.4,0.002]
[1767688031119,0.96685167,3211.0,3210.3,0.002]
[1767688032045,0.96685167,3210.9,3210.3,0.002]
[1767688033457,0.96685167,3210.9,3209.9,3.11534817]
[1767688033656,0.96685167,3210.8,3209.7,3.94078308]
[1767688033955,0.96685167,3210.8,3209.9,4.820722]
[1767688034257,4.08143013,3210.8,3209.9,4.435375]
[1767688034462,0.96685167,3210.7,3209.9,4.435375]
[1767688034758,0.96685167,3210.7,3209.9,0.83760776]
[1767688034954,0.96685167,3210.7,3209.9,5.471032]
[1767688035938,0.96685167,3210.7,3209.7,30.0]
[1767688036134,0.96685167,3210.5,3209.7,30.00929831]
[1767688036344,0.96685167,3210.9,3209.9,7.38861931]
[1767688036530,0.96685167,3210.9,3210.0,0.00929831]
[1767688037346,0.96685167,3210.8,3210.0,0.00929831]
[1767688038082,0.96685167,3210.8,3209.7,0.00929831]
[1767688038235,0.96685167,3210.6,3209.7,0.00929831]
[1767688038567,0.96685167,3210.6,3210.2,0.002]
[1767688040444,0.96685167,3210.4,3209.9,0.002]
[1767688041660,0.96685167,3210.6,3209.9,0.002]
[1767688042045,3.93059759,3210.7,3209.9,0.002]
[1767688042046,0.96685167,3210.5,3209.9,0.002]
[1767688042247,0.96685167,3211.2,3210.0,4.65595999]
[1767688042448,0.96685167,3211.0,3210.0,4.65595999]
[1767688042648,0.96685167,3211.0,3210.0,7.7712055]
[1767688042854,0.96685167,3211.0,3210.1,0.00929831]
[1767688043780,0.96685167,3211.0,3210.1,0.78661886]
[1767688043935,0.97929954,3211.7,3210.6,4.64666168]
[1767688044137,0.96685167,3211.7,3210.9,4.64666168]
[1767688044373,0.96685167,3211.7,3210.7,0.00929831]
[1767688044954,4.08049673,3211.7,3210.7,3.12382667]
[1767688045163,0.97929954,3211.6,3210.7,0.63314666]
[1767688045363,0.97929954,3211.6,3210.7,0.00929831]
[1767688045867,0.97929954,3211.6,3210.7,3.12387701]
[1767688046042,0.97929954,3211.6,3210.7,0.00929831]
[1767688046565,4.09301594,3211.6,3210.7,0.00929831]
[1767688046872,4.09301594,3211.6,3210.7,3.12386646]
[1767688047167,0.96685167,3211.9,3210.8,0.00929831]
[1767688047361,0.97929954,3211.9,3210.8,0.00929831]
[1767688048073,0.96685167,3211.7,3210.8,0.00929831]
[1767688048572,0.96685167,3211.7,3210.8,3.12377313]
[1767688048751,4.08047354,3211.7,3210.8,3.12377313]
[1767688049475,0.96685167,3211.7,3210.8,3.12377313]
[1767688049768,0.96685167,3211.6,3210.9,0.31237731]
[1767688051044,0.96785167,3211.6,3210.9,0.31237731]
[1767688052147,0.91097848,3211.5,3210.4,3.12409476]
[1767688052461,0.91097848,3211.3,3210.5,3.11477106]
[1767688054489,0.91097848,3211.3,3210.5,3.12406937]
[1767688054652,0.91097848,3211.3,3210.6,0.00929831]
[1767688054850,0.91097848,3211.3,3210.7,0.31333677]
[1767688055110,0.91097848,3211.5,3210.7,0.31333677]
[1767688055380,0.91097848,3211.5,3210.7,0.32263508]
[1767688055746,0.91097848,3211.5,3210.7,3.43719986]
[1767688055961,0.91097848,3211.5,3210.7,0.32263508]
[1767688056374,0.91097848,3211.5,3210.7,0.31333677]
[1767688056677,0.91097848,3211.5,3209.8,4.64986489]
[1767688056678,0.91097848,3211.5,3210.6,0.00929831]
[1767688057059,0.91097848,3211.3,3210.6,0.00929831]
[1767688057750,0.91097848,3211.3,3210.1,0.82529831]
[1767688058277,0.91097848,3211.3,3210.2,0.00929831]
[1767688059687,0.91097848,3211.1,3210.2,0.00929831]
[1767688061180,0.91097848,3211.1,3209.9,3.11731578]
[1767688061383,0.91097848,3211.0,3209.9,0.002]
[1767688061581,0.91097848,3210.8,3209.9,0.002]
[1767688061790,0.01244787,3210.9,3209.9,0.002]
[1767688061791,0.91097848,3210.6,3209.9,0.002]
[1767688062098,0.91097848,3210.4,3209.9,0.002]
[1767688064488,0.91097848,3210.3,3209.9,0.002]
[1767688068293,0.91097848,3210.2,3209.9,0.002]
[1767688068693,0.91097848,3210.5,3209.9,0.002]
[1767688070126,0.91097848,3210.4,3209.9,0.002]
[1767688071986,1.72697848,3210.6,3209.9,0.01129831]
[1767688072894,1.72697848,3210.6,3209.9,3.12665969]
[1767688073090,1.72697848,3210.6,3209.9,0.01129831]
[1767688073493,0.91097848,3210.6,3209.9,3.12664048]
[1767688073670,0.91097848,3210.7,3209.9,3.11734217]
[1767688073902,0.91097848,3210.7,3209.9,3.12664048]
[1767688074597,0.91097848,3210.7,3210.2,0.002]
[1767688074792,3.12684048,3210.9,3210.2,0.002]
[1767688075001,4.02537109,3210.9,3210.2,0.002]
[1767688075725,0.91097848,3210.9,3210.2,0.002]
[1767688075894,0.91097848,3210.9,3210.2,0.01129831]
[1767688076094,4.85459603,3211.2,3210.2,0.01129831]
[1767688076312,0.91097848,3211.1,3210.2,0.01129831]
[1767688077022,0.91097848,3211.1,3210.2,0.002]
[1767688077023,0.91097848,3211.0,3210.2,0.002]
[1767688077892,3.11421752,3211.1,3210.3,0.00929831]
[1767688078088,0.91197848,3211.2,3210.2,0.818]
[1767688078293,0.91097848,3211.1,3210.2,0.82729831]
[1767688078816,0.91097848,3211.1,3210.3,0.00929831]
[1767688079592,0.001,3211.2,3210.3,0.00929831]
[1767688079888,0.001,3211.2,3210.4,19.886988]
[1767688080087,0.001,3211.2,3210.6,3.11468261]
[1767688080492,0.001,3211.2,3210.6,3.12398092]
[1767688080693,0.001,3211.2,3210.7,0.00929831]
[1767688081517,0.91097848,3211.4,3210.7,0.00929831]
[1767688081690,0.91667388,3211.5,3210.6,6.22936522]
[1767688081891,0.91667388,3211.5,3210.7,0.70453652]
[1767688082092,0.001,3211.6,3210.8,3.12378691]
[1767688082392,0.001,3211.6,3210.9,0.00929831]
[1767688086606,0.001,3211.3,3210.9,0.00929831]
[1767688086922,0.001,3211.3,3211.0,0.00929831]
[1767688087120,0.001,3211.3,3211.0,0.32166917]
[1767688087321,0.91667388,3211.9,3211.1,0.00929831]
[1767688088193,0.91667388,3211.8,3211.0,0.31237086]
[1767688088505,0.91667388,3211.6,3210.4,2.775713]
[1767688088711,0.91667388,3211.6,3210.3,7.05524246]
[1767688089022,0.91667388,3211.6,3210.4,0.00929831]
[1767688090524,0.91667388,3211.4,3210.3,0.816]
[1767688092739,0.91667388,3211.3,3210.4,3.11487665]
[1767688092896,0.91667388,3211.3,3210.2,3.93301918]
[1767688092897,0.91667388,3211.3,3210.5,0.31148766]
[1767688094139,0.91667388,3211.3,3209.9,0.002]
[1767688094449,0.91667388,3211.1,3209.9,0.002]
[1767688094597,0.91667388,3210.9,3209.9,0.002]
[1767688096818,0.91667388,3210.7,3209.9,0.002]
[1767688098235,0.91667388,3210.7,3210.2,0.002]
[1767688098435,0.91667388,3210.5,3210.2,0.002]
[1767688099839,0.91667388,3210.4,3210.2,0.002]
[1767688105340,0.91667388,3210.4,3209.9,0.002]
[1767688105524,0.91667388,3210.4,3209.6,3.11565065]
[1767688109825,0.91667388,3210.4,3209.9,0.002]
[1767688111127,4.04705121,3210.7,3209.9,0.01729831]
[1767688111328,4.04705121,3210.7,3209.9,0.002]
[1767688111329,0.93242473,3210.7,3209.9,0.002]
[1767688111547,3.11443762,3210.9,3210.0,0.01529831]
[1767688111769,0.816,3211.2,3210.2,0.01529831]
[1767688112070,0.93242473,3211.3,3210.3,0.01529831]
[1767688113233,0.93242473,3211.3,3210.5,0.01529831]
[1767688113430,4.04642892,3211.3,3210.5,0.01529831]
[1767688114654,0.93242473,3211.3,3210.5,0.01529831]
[1767688114860,0.93242473,3211.3,3210.5,0.32832134]
[1767688115558,3.11392547,3211.4,3210.6,0.01529831]
[1767688117159,4.0463502,3211.4,3210.6,0.01529831]
[1767688117463,0.93242473,3211.3,3210.5,0.31302303]
[1767688117667,0.93242473,3211.1,3210.3,0.01529831]
[1767688118454,0.93242473,3211.1,3210.3,0.83129831]
[1767688118759,0.93242473,3211.1,3210.3,0.01529831]
[1767688119130,3.11404708,3211.3,3210.4,0.01529831]
[1767688119334,3.11404708,3211.3,3210.5,0.01529831]
[1767688119664,3.11393144,3211.4,3210.5,0.01529831]
[1767688120133,0.93242473,3211.3,3210.4,0.70613179]
[1767688120337,0.93242473,3211.3,3210.4,0.01529831]
[1767688120647,0.93242473,3211.3,3210.5,0.01529831]
[1767688121866,4.04651813,3211.3,3210.5,0.01529831]
[1767688122569,0.001,3211.0,3210.5,0.01529831]
[1767688128340,4.0461424,3211.6,3210.6,0.01529831]
[1767688128546,4.04615641,3211.6,3210.8,0.01529831]
[1767688128763,0.93242473,3211.8,3211.0,4.66882255]
[1767688129065,0.93242473,3211.8,3211.0,4.65352424]
[1767688129266,0.93242473,3211.7,3211.0,0.46688226]
[1767688131772,0.93242473,3211.7,3211.0,0.48218057]
[1767688132067,0.93242473,3211.7,3211.0,3.59646948]
[1767688134671,0.93242473,3211.7,3211.0,0.48218057]
[1767688134873,0.001,3211.4,3211.0,0.48218057]
[1767688135041,0.001,3211.4,3211.1,0.35965324]
[1767688135466,0.001,3211.4,3211.0,0.01529831]
[1767688136100,0.93242473,3211.7,3211.0,0.01529831]
[1767688136101,0.97884157,3212.0,3211.3,4.65352424]
[1767688136251,0.97884157,3212.0,3211.3,4.66882255]
[1767688138486,0.97884157,3212.0,3211.4,0.01529831]
[1767688138785,0.001,3212.1,3211.5,0.48218057]
[1767688139284,0.97984157,3212.1,3211.5,0.48218057]
[1767688139486,0.97984157,3212.1,3211.5,0.01329831]
[1767688139670,0.97984157,3212.1,3211.5,3.11378598]
[1767688139874,0.001,3212.1,3211.6,0.01329831]
[1767688142195,0.95848974,3212.0,3211.1,3.11412722]
[1767688142491,0.94604187,3211.7,3210.7,0.32630416]
[1767688142654,0.94604187,3211.5,3210.8,0.80944956]
[1767688142856,0.94604187,3211.5,3210.4,4.66682255]
[1767688143070,0.94604187,3211.5,3210.4,0.01329831]
[1767688143271,0.94604187,3211.5,3210.5,3.93072237]
[1767688143494,0.94604187,3211.5,3210.5,3.11472237]
[1767688143794,0.94604187,3211.5,3210.6,3.11465805]
[1767688143954,0.94604187,3211.5,3210.6,3.8205392]
[1767688144991,0.94604187,3211.4,3210.6,3.8205392]
[1767688145584,0.94604187,3211.4,3210.6,0.70588115]
[1767688145886,0.94604187,3211.4,3210.6,3.8205434]
[1767688146383,0.94604187,3211.4,3210.6,8.47406764]
[1767688146579,0.94604187,3211.4,3210.9,0.002]
[1767688146883,0.94704187,3211.4,3210.9,0.002]
[1767688154591,0.001,3211.4,3210.9,0.002]
[1767688156197,3.94202123,3211.8,3210.9,0.002]
[1767688156198,0.94604187,3211.8,3211.0,4.66682255]
[1767688156899,0.94604187,3211.8,3211.0,7.78104419]
[1767688157101,0.94604187,3211.8,3211.1,0.85990442]
[1767688159302,0.94604187,3211.8,3211.1,3.97409941]
[1767688159672,0.001,3211.5,3211.1,3.97409941]
[1767688159899,0.94604187,3211.8,3211.1,3.97409941]
[1767688162202,0.94604187,3212.0,3211.3,4.65352424]
[1767688162501,0.001,3212.5,3211.7,0.96393404]
[1767688163801,0.001,3212.5,3212.0,0.96393404]
[1767688171995,4.05841536,3213.0,3212.0,0.96393404]
[1767688171996,0.94604187,3213.0,3212.1,0.95863132]
[1767688172197,4.10912139,3213.2,3212.1,0.95863132]
[1767688172396,0.99687512,3213.1,3212.3,0.95863132]
[1767688172811,0.816,3213.4,3212.5,0.95863132]
[1767688172812,1.81287512,3213.4,3212.5,0.95863132]
[1767688173011,0.99687512,3213.3,3212.5,0.95863132]
[1767688173599,0.99687512,3213.9,3212.6,0.95863132]
[1767688173906,3.11171281,3213.7,3212.6,0.95863132]
[1767688174106,3.42685824,3213.6,3212.6,0.95863132]
[1767688174300,3.42685824,3213.6,3212.8,0.95863132]
[1767688174905,0.31506944,3213.6,3212.8,0.95863132]
[1767688175106,3.42684549,3213.6,3212.8,0.95863132]
[1767688175812,0.31506944,3213.6,3212.9,0.95863132]
[1767688175991,0.31506944,3213.6,3213.0,1.36574837]
[1767688176183,0.31506944,3213.6,3213.1,0.95863132]
[1767688176389,0.99687513,3213.6,3213.0,0.40711705]
[1767688176814,0.001,3213.8,3213.1,7.04051836]
[1767688177015,0.001,3213.8,3213.2,0.95863132]
[1767688177221,0.001,3213.8,3213.4,0.95863132]
[1767688177589,0.99687512,3214.4,3213.3,0.79991497]
[1767688178909,0.99687512,3214.4,3213.4,6.22393726]
[1767688179101,3.11080057,3214.7,3213.5,0.95863132]
[1767688179301,0.99687512,3215.0,3213.7,0.95863132]
[1767688179988,3.926239,3215.2,3213.8,0.95863132]
[1767688180700,0.816,3215.2,3213.8,0.95863132]
[1767688180901,0.816,3215.2,3214.0,0.95863132]
[1767688181086,0.816,3215.2,3214.2,0.95863132]
[1767688182393,3.92623204,3215.2,3214.2,0.95863132]
[1767688183024,0.816,3215.2,3214.3,0.95863132]
[1767688183230,0.01244787,3215.7,3214.3,0.95863132]
[1767688183231,0.815,3215.6,3214.3,0.95863132]
[1767688184226,1.81187512,3215.6,3214.3,0.95863132]
[1767688184428,1.81187512,3215.6,3214.5,0.95863132]
[1767688184598,0.815,3215.6,3214.5,0.95863132]
[1767688184795,3.10974282,3215.7,3214.5,0.95863132]
[1767688185141,3.10965323,3215.8,3214.7,0.95863132]
[1767688185805,7.2160527,3215.9,3214.7,0.95863132]
[1767688185993,0.001,3214.9,3214.8,0.95863132]
[1767688186192,0.99687512,3215.8,3214.7,0.79952452]
[1767688186418,0.99687512,3215.8,3214.6,3.92580694]
[1767688186854,1.00932299,3215.8,3214.6,3.11080694]
[1767688187140,0.99687512,3215.5,3214.4,0.7180942]
[1767688187347,0.99687512,3215.3,3214.3,3.11109193]
[1767688188245,0.99687512,3215.3,3214.4,10.725118]
[1767688189904,0.99687512,3215.3,3214.5,3.11090371]
[1767688190105,0.99687512,3215.3,3214.4,3.42189388]
[1767688190328,0.99687512,3215.3,3214.4,3.11099388]
[1767688190527,0.99687512,3215.3,3214.4,3.81471236]
[1767688190730,0.99687512,3215.2,3214.3,0.815]
[1767688191110,0.99687512,3215.2,3213.9,3.11143006]
[1767688191305,0.99687512,3215.2,3214.1,3.11128513]
[1767688191824,4.10719828,3215.1,3214.1,0.95863132]
[1767688192640,7.21752144,3215.1,3214.1,0.95863132]
[1767688192937,0.99687512,3215.0,3214.1,0.95863132]
[1767688193913,0.99687512,3214.8,3213.8,3.11152401]
[1767688194237,0.99687512,3214.8,3213.9,3.11148378]
[1767688194609,0.99687512,3214.8,3213.8,3.11157809]
[1767688194941,0.99687512,3214.6,3213.8,3.11157809]
[1767688195620,0.99687512,3214.6,3213.9,3.11147775]
[1767688195931,0.99687512,3214.6,3213.8,3.11155158]
[1767688196135,4.10768242,3214.6,3213.7,4.89078978]
[1767688196737,0.98881384,3214.5,3213.7,4.89078978]
[1767688197542,0.98881384,3214.5,3213.5,3.11185105]
[1767688197543,0.98881384,3214.4,3213.6,3.11173646]
[1767688198209,0.98881384,3214.4,3214.1,0.002]
[1767688200312,0.98881384,3214.6,3214.1,0.002]
[1767688200650,0.98881384,3214.9,3214.1,0.96613041]
[1767688201005,0.98881384,3214.9,3214.1,0.002]
[1767688201212,0.90117941,3214.7,3214.1,0.002]
[1767688202367,0.90117941,3214.5,3214.1,1e-08]
[1767688202922,0.90117941,3214.2,3212.8,0.002]
[1767688203222,0.90117941,3214.0,3212.9,3.11245143]
[1767688203433,0.90117941,3214.0,3212.9,4.03510296]
[1767688204532,0.90117941,3213.8,3212.9,0.92265153]
[1767688204942,0.90117941,3213.8,3212.8,0.002]
[1767688205318,0.91362728,3213.8,3212.8,0.002]
[1767688205533,0.91362728,3213.8,3213.1,1e-08]
[1767688206142,0.90117941,3213.6,3213.1,1e-08]
[1767688206626,4.0130512,3213.5,3213.1,1e-08]
[1767688206946,0.90117941,3213.5,3213.1,1e-08]
[1767688207152,3.111799,3213.6,3213.1,1e-08]
[1767688208054,3.11172129,3213.7,3213.1,1e-08]
[1767688211476,6.22344258,3213.7,3213.1,1e-08]
[1767688211628,3.11172129,3213.7,3213.1,1e-08]
[1767688212231,0.001,3213.5,3213.1,1e-08]
[1767688212873,0.90217941,3213.5,3213.1,1e-08]
[1767688213238,1.71717941,3213.5,3212.8,0.002]
[1767688213439,0.90117941,3213.2,3212.8,0.002]
[1767688213646,0.90117941,3213.2,3212.2,0.92265153]
[1767688214052,3.11206547,3213.3,3212.3,0.92265153]
[1767688214248,3.11206547,3213.3,3212.5,0.92265153]
[1767688214563,4.82912423,3213.5,3212.6,0.95377896]
[1767688214564,4.01408665,3213.5,3212.6,0.95377896]
[1767688214752,3.11290724,3213.5,3212.6,0.92265153]
[1767688215666,6.22481448,3213.5,3212.6,0.92265153]
[1767688217073,0.001,3213.5,3212.6,0.92265153]
[1767688217367,3.11121463,3214.2,3213.3,0.92265153]
[1767688217665,3.11129087,3214.1,3213.3,0.92265153]
[1767688218277,0.815,3214.6,3213.4,0.92265153]
[1767688220470,6.22180742,3214.5,3213.5,0.92265153]
[1767688220837,3.11090371,3214.5,3213.5,0.92265153]
[1767688221284,3.92580881,3214.6,3213.5,0.92265153]
[1767688222067,7.03661762,3214.6,3213.5,0.92265153]
[1767688222470,0.90117941,3214.5,3213.5,0.92265153]
[1767688222691,0.90117941,3214.3,3213.2,0.92265153]
[1767688222970,0.90117941,3214.3,3213.0,4.03496611]
[1767688223271,0.90117941,3214.3,3213.1,0.92265153]
[1767688223942,0.90117941,3214.1,3213.1,0.92265153]
[1767688224147,0.90117941,3214.0,3213.1,0.92265153]
[1767688224352,0.90117941,3214.0,3212.8,0.92265153]
[1767688224553,0.90117941,3214.0,3212.8,4.03515067]
[1767688224750,0.90117941,3214.0,3212.8,3.11249914]
[1767688224965,0.90117941,3214.0,3213.1,3.11224131]
[1767688225149,0.90117941,3214.0,3213.2,0.62245823]
[1767688225786,4.82837348,3214.2,3213.2,1.54510976]
[1767688226086,1.71717941,3214.2,3213.3,4.034717]
[1767688226283,4.82837793,3214.2,3213.3,4.034717]
[1767688226472,4.82837465,3214.2,3213.3,0.92265153]
[1767688227884,0.90117941,3214.1,3213.2,3.11214516]